Workbook

Sheet 12-18
B2: Примерное меню учащихся МОУ "Лахколампинская СОШ" на 2022-2023 гг
A3: Возрастная категория 12-17 лет
A4: Номер тех.карты | B4: Наименование блюда | C4: Масса порции, г | D4: Пищевая ценность, г | G4: Энергетическая ценность (ккал) | H4: Минеральные вещества, мг
D5: Белки | E5: Жиры | F5: Углево-ды | H5: Ca | I5: Mg | J5: Fe | K5: C
B6: День 1
B7: ЗАВТРАК
A8: 112 | B8: Суп молочный с макаронными изделиями | C8: 220 | D8: 5.02 | E8: 4.31 | F8: 19.1 | G8: 136.4 | H8: 131.12 | I8: 16.72 | J8: 1.32 | K8: 0.9
A9: 10 | B9: Батон "умница" | C9: 30 | D9: 2.3 | E9: 0.9 | F9: 15.4 | G9: 78.6 | H9: 5.7 | I9: 3.9 | J9: 0.3 | K9: 0
A10: 6 | B10: Масло сливочное | C10: 10 | D10: 0.08 | E10: 8.24 | F10: 0.08 | G10: 74.8 | H10: 1.2 | I10: 0 | J10: 0.02 | K10: 0
A11: 7 | B11: Сыр | C11: 15 | D11: 3.48 | E11: 4.43 | F11: 0 | G11: 54 | H11: 132 | I11: 0 | J11: 1 | K11: 0.01
A12: 20 | B12: Чай сладкий | C12: 200 | D12: 0.2 | E12: 0.11 | F12: 15 | G12: 60 | H12: 5 | I12: 4 | J12: 1 | K12: 0
B13: Итого за завтрак | C13: =SUM(C8:C12) -> 475 | D13: =SUM(D8:D12) -> 11.08 | E13: =SUM(E8:E12) -> 17.99 | F13: =SUM(F8:F12) -> 49.58 | G13: =SUM(G8:G12) -> 403.8 | H13: =SUM(H8:H12) -> 275.02 | I13: =SUM(I8:I12) -> 24.62 | J13: =SUM(J8:J12) -> 3.64 | K13: =SUM(K8:K12) -> 0.91
B14: ОБЕД
A15: 13 | B15: Салат из свеклы с р/м | C15: 60 | D15: 1 | E15: 3 | F15: 5.8 | G15: 53.9 | H15: 22.7 | I15: 13.5 | J15: 0.9 | K15: 2.7
A16: 80 | B16: Суп крестьянский с крупой | C16: 250 | D16: 2.18 | E16: 2.84 | F16: 14.29 | G16: 91.5 | H16: 24 | I16: 0 | J16: 0.96 | K16: 8.25
A17: 260 | B17: Гуляш мясной | C17: 100 | D17: 14.55 | E17: 16.79 | F17: 2.89 | G17: 221 | H17: 21.81 | I17: 22.03 | J17: 3.06 | K17: 0.92
A18: 321 | B18: Капуста тушеная | C18: 180 | D18: 3.72 | E18: 5.83 | F18: 16.97 | G18: 135.24 | H18: 99.84 | I18: 37.18 | J18: 1.45 | K18: 30.89
A19: 11 | B19: Хлеб "богатырь" | C19: 30 | D19: 1.97 | E19: 0.26 | F19: 12.69 | G19: 61.2 | H19: 5.4 | I19: 5.74 | J19: 1.2 | K19: 0
A20: 10 | B20: Батон "умница" | C20: 20 | D20: 1.53 | E20: 0.6 | F20: 10.27 | G20: 52.4 | H20: 3.8 | I20: 2.6 | J20: 0.2 | K20: 0
A21: 349 | B21: Компот из сухофруктов | C21: 200 | D21: 0.66 | E21: 0.09 | F21: 32.01 | G21: 132.8 | H21: 32.48 | I21: 17.46 | J21: 0.7 | K21: 0.73
B22: Итого за обед | C22: =SUM(C15:C21) -> 840 | D22: =SUM(D15:D21) -> 25.61 | E22: =SUM(E15:E21) -> 29.41 | F22: 94.92 | G22: 748.04 | H22: 210.03 | I22: =SUM(I15:I21) -> 98.51 | J22: =SUM(J15:J21) -> 8.47 | K22: =SUM(K15:K21) -> 43.49
B23: Итого за день | D23: =D13+D22 -> 36.69 | E23: 47.4 | F23: 144.5 | G23: 1151.84 | H23: 485.05 | I23: 123.13 | J23: 12.11 | K23: 44.4
A26: Номер тех.карты | B26: Наименование блюда | C26: Расход продуктов на 1 порцию (нетто) | D26: Пищевая ценность, г | G26: Энергетическая ценность (ккал) | H26: Минеральные вещества, мг
D27: Белки | E27: Жиры | F27: Углево-ды | H27: Ca | I27: Mg | J27: Fe | K27: C
B28: День 2
B29: ЗАВТРАК
A30: 210 | B30: Омлет натуральный | C30: 160 | D30: 16.48 | E30: 27.2 | F30: 2.56 | G30: 274.3 | H30: 101.94 | I30: 21.42 | J30: 2.97 | K30: 0.32
A31: 9/2008 | B31: Морковь тертая с р/м | C31: 80 | D31: 0.91 | E31: 8.06 | F31: 8.3 | G31: 109.44
A32: 379 | B32: Кофейный напиток | C32: 200 | D32: 3.17 | E32: 2.68 | F32: 15.9 | G32: 100.6 | H32: 125.78 | I32: 14 | J32: 0.13 | K32: 1.3
A33: 10 | B33: Батон "умница" | C33: 30 | D33: 2.3 | E33: 0.9 | F33: 15.4 | G33: 78.6 | H33: 5.7 | I33: 3.9 | J33: 0.3 | K33: 0
A34: 6 | B34: Масло сливочное | C34: 10 | D34: 0.08 | E34: 8.24 | F34: 0.08 | G34: 74.8 | H34: 1.2 | I34: 0 | J34: 0.02 | K34: 0
A35: 7 | B35: Сыр | C35: 15 | D35: 3.48 | E35: 4.43 | F35: 0 | G35: 54 | H35: 132 | I35: 0 | J35: 0.15 | K35: 0.01
B36: Итого за завтрак | C36: =SUM(C30:C35) -> 495 | D36: =SUM(D30:D35) -> 26.42 | E36: =SUM(E30:E35) -> 51.51 | F36: =SUM(F30:F35) -> 42.24 | G36: =SUM(G30:G35) -> 691.74 | H36: =SUM(H30:H35) -> 366.62 | I36: =SUM(I30:I35) -> 39.32 | J36: =SUM(J30:J35) -> 3.57 | K36: =SUM(K30:K35) -> 1.63
B37: ОБЕД
B38: Икра кабачковая | C38: 60
A39: 88 | B39: Щи из свежей капусты | C39: 250 | D39: 6.37 | E39: 10.06 | F39: 8.26 | G39: 157.04 | H39: 60.89 | I39: 23 | J39: 1.28 | K39: 21.16
A40: 128 | B40: Картофельное пюре | C40: 180 | D40: 3.91 | E40: 11.54 | F40: 22.67 | G40: 217.8 | H40: 52.49 | I40: 34.52 | J40: 1.3 | K40: 22.43
A41: 165/2008 | B41: Рыба припущенная | C41: 100 | D41: 14 | E41: 8.63 | F41: 3.26 | G41: 153.37
A42: 11 | B42: Хлеб "богатырь" | C42: 30 | D42: 1.97 | E42: 0.26 | F42: 12.69 | G42: 61.2 | H42: 5.4 | I42: 5.74 | J42: 1.2 | K42: 0
A43: 10 | B43: Батон "умница" | C43: 20 | D43: 1.53 | E43: 0.6 | F43: 10.27 | G43: 52.4 | H43: 3.8 | I43: 2.6 | J43: 0.2 | K43: 0
A44: 411 | B44: Кисель | C44: 200 | D44: 0.1 | E44: 0.1 | F44: 27.9 | G44: 113 | H44: 5 | I44: 2 | J44: 0.4 | K44: 2
B45: Итого за обед | C45: =SUM(C38:C44) -> 840 | D45: =SUM(D38:D44) -> 27.88 | E45: 31.19 | F45: 85.05 | G45: 754.81 | H45: 127.58 | I45: 67.86 | J45: 4.38 | K45: 45.59
B46: Итого за день | D46: =D36+D45 -> 54.3 | E46: 82.7 | F46: 127.29 | G46: 1446.55 | H46: 494.2 | I46: 107.18 | J46: 7.95 | K46: 47.22
A49: Номер тех.карты | B49: Наименование блюда | C49: Расход продуктов на 1 порцию (нетто) | D49: Пищевая ценность, г | G49: Энергетическая ценность (ккал) | H49: Минеральные вещества, мг
D50: Белки | E50: Жиры | F50: Углево-ды | H50: Ca | I50: Mg | J50: Fe | K50: C
B51: День 3
B52: ЗАВТРАК
A53: 238 | B53: Запеканка творожно-морковная со сметанным соусом | C53: 220/20 | D53: 25.65 | E53: 22.64 | F53: 52.32 | G53: 514.8 | H53: 249.92 | I53: 0 | J53: 1.52 | K53: 1.56
A54: 433 | B54: Какао с молоком | C54: 200 | D54: 2.9 | E54: 2.5 | F54: 24.8 | G54: 134 | H54: 121 | I54: 14 | J54: 1 | K54: 1
A55: 10 | B55: Батон "умница" | C55: 30 | D55: 2.3 | E55: 0.9 | F55: 15.4 | G55: 78.6 | H55: 5.7 | I55: 3.9 | J55: 0.3 | K55: 0
A56: 13 | B56: Масло сливочное | C56: 10 | D56: 0.08 | E56: 8.24 | F56: 0.08 | G56: 74.8 | H56: 1.2 | I56: 0 | J56: 0.02 | K56: 0
B58: Итого за завтрак | C58: 480 | D58: =SUM(D53:D57) -> 30.93 | E58: =SUM(E53:E57) -> 34.28 | F58: =SUM(F53:F57) -> 92.6 | G58: =SUM(G53:G57) -> 802.2 | H58: =SUM(H53:H57) -> 377.82 | I58: =SUM(I53:I57) -> 17.9 | J58: =SUM(J53:J57) -> 2.84 | K58: =SUM(K53:K57) -> 2.56
B59: ОБЕД
A60: 9/2008 | B60: Салат из моркови с р/м | C60: 60 | D60: 0.68 | E60: 6.48 | F60: 6.23 | G60: 82.08
A61: 84 | B61: Борщ с фасолью и картоф. | C61: 250 | D61: 8.16 | E61: 10.23 | F61: 14.79 | G61: 195.04 | H61: 65.92 | I61: 35.35 | J61: 2.18 | K61: 12.08
A62: 193/2008 | B62: Плов рисовый с мясом | C62: 250 | D62: 30.41 | E62: 25.86 | F62: 42.14 | G62: 522.96
A63: 11 | B63: Хлеб "Богатырь" | C63: 30 | D63: 1.97 | E63: 0.26 | F63: 12.69 | G63: 61.2 | H63: 5.4 | I63: 5.74 | J63: 1.2 | K63: 0
A64: 10 | B64: Батон "умница" | C64: 20 | D64: 1.53 | E64: 0.6 | F64: 10.27 | G64: 52.4 | H64: 3.8 | I64: 2.6 | J64: 0.2 | K64: 0
B65: Напиток клюквенный | C65: 200
B66: Итого за обед | C66: =SUM(C60:C65) -> 810 | D66: =SUM(D60:D65) -> 42.75 | E66: =SUM(E60:E65) -> 43.43 | F66: 86.12 | G66: 913.68 | H66: 75.12 | I66: 43.69 | J66: 3.58 | K66: 12.08
B67: Итого за день | D67: =D58+D66 -> 73.68 | E67: 77.71 | F67: 178.72 | G67: 1715.88 | H67: 452.94 | I67: 61.59 | J67: 6.42 | K67: 14.64
A70: Номер тех.карты | B70: Наименование блюда | C70: Расход продуктов на 1 порцию (нетто) | D70: Пищевая ценность, г | G70: Энергетическая ценность (ккал) | H70: Минеральные вещества, мг
D71: Белки | E71: Жиры | F71: Углево-ды | H71: Ca | I71: Mg | J71: Fe | K71: C
B72: День 4
B73: ЗАВТРАК
A74: 119/2008 | B74: Запеканка рисовая | C74: 220 | D74: 5.02 | E74: 10.7 | F74: 48.39 | G74: 311.45
A75: 411 | B75: Кисель | C75: 200 | D75: 0.1 | E75: 0.1 | F75: 27.9 | G75: 113 | H75: 5 | I75: 2 | J75: 0.4 | K75: 2
A76: 10 | B76: Батон "умница" | C76: 30 | D76: 2.3 | E76: 0.9 | F76: 15.4 | G76: 78.6 | H76: 5.7 | I76: 3.9 | J76: 0.3 | K76: 0
B77: Йогурт порционный | C77: 125
B79: Итого за завтрак | C79: =SUM(C74:C78) -> 575 | D79: =SUM(D74:D78) -> 7.42 | E79: =SUM(E74:E78) -> 11.7 | F79: =SUM(F74:F78) -> 91.69 | G79: =SUM(G74:G78) -> 503.05 | H79: =SUM(H74:H78) -> 10.7 | I79: =SUM(I74:I78) -> 5.9 | J79: =SUM(J74:J78) -> 0.7 | K79: =SUM(K74:K78) -> 2
B80: ОБЕД
A81: 47 | B81: Капуста квашенная | C81: 60 | D81: 1.02 | E81: 3 | F81: 5.07 | G81: 51.42 | H81: 31.35 | I81: 9.61 | J81: 0.4 | K81: 11.89
A82: 82 | B82: Суп с макаронными издел. | C82: 250 | D82: 7.66 | E82: 8.58 | F82: 17.14 | G82: 176.42 | H82: 25.04 | I82: 27.44 | J82: 1.1 | K82: 8.56
A83: 679 | B83: Греча рассыпчатая | C83: 180 | D83: 8.95 | E83: 6.73 | F83: 43 | G83: 276.53 | H83: 15.57 | I83: 81 | J83: 4.73 | K83: 0
A84: 283 | B84: Тефтели мясные | C84: 100 | D84: 15.5 | E84: 27.5 | F84: 21 | G84: 391.5 | H84: 57.5 | I84: 23.16 | J84: 1.83 | K84: 0.15
A85: 11 | B85: Хлеб "богатырь" | C85: 30 | D85: 1.97 | E85: 0.26 | F85: 12.69 | G85: 61.2 | H85: 5.4 | I85: 5.74 | J85: 1.2 | K85: 0
A86: 10 | B86: Батон "умница" | C86: 20 | D86: 1.53 | E86: 0.6 | F86: 10.27 | G86: 52.4 | H86: 3.8 | I86: 2.6 | J86: 0.2 | K86: 0
A87: 349 | B87: Компот из сухофруктов | C87: 200 | D87: 0.66 | E87: 0.09 | F87: 32.01 | G87: 132.8 | H87: 32.48 | I87: 17.46 | J87: 0.7 | K87: 0.73
B88: Итого за обед | C88: =SUM(C81:C87) -> 840 | D88: =SUM(D81:D87) -> 37.29 | E88: =SUM(E81:E87) -> 46.76 | F88: 141.18 | G88: 1142.27 | H88: 171.14 | I88: 167.01 | J88: 10.16 | K88: 21.33
B89: Итого за день | D89: =D79+D88 -> 44.71 | E89: 58.46 | F89: 232.87 | G89: 1645.32 | H89: 181.84 | I89: 172.91 | J89: 10.86 | K89: 23.33
A92: Номер тех.карты | B92: Наименование блюда | C92: Расход продуктов на 1 порцию (нетто) | D92: Пищевая ценность, г | G92: Энергетическая ценность (ккал) | H92: Минеральные вещества, мг
D93: Белки | E93: Жиры | F93: Углево-ды | H93: Ca | I93: Mg | J93: Fe | K93: C
B94: День 5
B95: ЗАВТРАК
A96: 128 | B96: Картофельное пюре | C96: 180 | D96: 3.91 | E96: 11.54 | F96: 22.67 | G96: 217.8 | H96: 52.49 | I96: 34.52 | J96: 1.3 | K96: 22.43
A97: 234 | B97: Тефтели рыбные | C97: 100 | D97: 12.24 | E97: 12.11 | F97: 14.95 | G97: 217.48 | H97: 60.15 | I97: 24.36 | J97: 1.24 | K97: 0.94
A98: 11 | B98: Хлеб "богатырь" | C98: 30 | D98: 1.97 | E98: 0.26 | F98: 12.69 | G98: 61.2 | H98: 5.4 | I98: 5.74 | J98: 1.2 | K98: 0
A99: 349 | B99: Компот из сухофруктов | C99: 200 | D99: 0.66 | E99: 0.09 | F99: 32.01 | G99: 132.8 | H99: 32.48 | I99: 17.46 | J99: 0.7 | K99: 0.73
B100: Итого за завтрак | C100: =SUM(C96:C99) -> 510 | D100: =SUM(D96:D99) -> 18.78 | E100: =SUM(E96:E99) -> 24 | F100: 82.32 | G100: 629.28 | H100: 150.52 | I100: 82.08 | J100: 4.44 | K100: 24.1
B101: ОБЕД
A102: 71 | B102: Овощи в нарезке (огурец) | C102: 60 | D102: 0.66 | E102: 0.12 | F102: 2.28 | G102: 13.2 | H102: 8.4 | I102: 12 | J102: 0.54 | K102: 10.5
A103: 82 | B103: Борщ со сметаной | C103: 250/10 | D103: 6.4 | E103: 10.03 | F103: 11.55 | G103: 171.04 | H103: 61.37 | I103: 27.03 | J103: 1.68 | K103: 16.06
A104: 304 | B104: Рис рассыпчатый | C104: 180 | D104: 4.38 | E104: 6.45 | F104: 43.92 | G104: 251.64 | H104: 2.88 | I104: 22.8 | J104: 64 | K104: 0
A105: 268 | B105: Биточек (мясо или птица) | C105: 100 | D105: 16.5 | E105: 24.2 | F105: 14.32 | G105: 344 | H105: 43.04 | I105: 55.78 | J105: 2.8 | K105: 0.4
A106: 11 | B106: Хлеб "богатырь" | C106: 30 | D106: 1.97 | E106: 0.26 | F106: 12.69 | G106: 61.2 | H106: 5.4 | I106: 5.74 | J106: 1.2 | K106: 0
A107: 10 | B107: Батон "умница" | C107: 20 | D107: 1.53 | E107: 0.6 | F107: 10.27 | G107: 52.4 | H107: 3.8 | I107: 2.6 | J107: 0.2 | K107: 0
B108: Напиток клюквенный | C108: 200
B109: Итого за обед | C109: 860 | D109: =SUM(D102:D108) -> 31.44 | E109: 41.66 | F109: 95.03 | G109: 893.48 | H109: 124.89 | I109: 125.95 | J109: 70.42 | K109: 26.96
B110: Итого за день | D110: =D100+D109 -> 50.22 | E110: 65.66 | F110: 177.35 | G110: 1522.76 | H110: 275.41 | I110: 208.03 | J110: 74.86 | K110: 51.06
A113: Номер тех.карты | B113: Наименование блюда | C113: Расход продуктов на 1 порцию (нетто) | D113: Пищевая ценность, г | G113: Энергетическая ценность (ккал) | H113: Минеральные вещества, мг
D114: Белки | E114: Жиры | F114: Углево-ды | H114: Ca | I114: Mg | J114: Fe | K114: C
B115: День 6
B116: ЗАВТРАК
A117: 189 | B117: Каша молочная манная | C117: 220 | D117: 6.68 | E117: 9 | F117: 30.05 | G117: 227.96 | H117: 153.91 | I117: 21.78 | J117: 1.45 | K117: 1.45
A118: 10 | B118: Батон "умница" | C118: 30 | D118: 2.3 | E118: 0.9 | F118: 15.4 | G118: 78.6 | H118: 5.7 | I118: 3.9 | J118: 0.3 | K118: 0
A119: 6 | B119: Масло сливочное | C119: 10 | D119: 0.08 | E119: 8.24 | F119: 0.08 | G119: 74.8 | H119: 1.2 | I119: 0 | J119: 0.02 | K119: 0
A120: 7 | B120: Сыр | C120: 15 | D120: 3.48 | E120: 4.43 | F120: 0 | G120: 54 | H120: 132 | I120: 0 | J120: 0.15 | K120: 0.01
A121: 377 | B121: Чай сладкий с лимоном | C121: 200/7 | D121: 0.13 | E121: 0.02 | F121: 15.2 | G121: 62 | H121: 14.2 | I121: 2.4 | J121: 0.36 | K121: 2.83
B122: Итого за завтрак | C122: 482 | D122: =SUM(D117:D121) -> 12.67 | E122: =SUM(E117:E121) -> 22.59 | F122: 60.73 | G122: 497.36 | H122: 307.01 | I122: 28.08 | J122: 2.28 | K122: 4.29
B123: ОБЕД
A124: 71 | B124: Овощи в нарезке | C124: 60 | D124: 0.66 | E124: 0.12 | F124: 2.28 | G124: 13.2 | H124: 8.4 | I124: 12 | J124: 54 | K124: 10.5
A125: 82 | B125: Борщ со сметаной | C125: 250/10 | D125: 6.4 | E125: 10.03 | F125: 11.55 | G125: 171.04 | H125: 61.37 | I125: 27.03 | J125: 1.68 | K125: 16.06
A126: 202 | B126: Макароны отварные | C126: 180 | D126: 6.55 | E126: 6.95 | F126: 36.54 | G126: 234.84 | H126: 14.57 | I126: 9.77 | J126: 0.97 | K126: 0
A127: 283 | B127: Тефтели мясные | C127: 100 | D127: 15.5 | E127: 27.5 | F127: 21 | G127: 391.5 | H127: 57.5 | I127: 23.16 | J127: 1.83 | K127: 0.15
A128: 11 | B128: Хлеб "богатырь" | C128: 30 | D128: 1.97 | E128: 0.26 | F128: 12.69 | G128: 61.2 | H128: 5.4 | I128: 5.74 | J128: 1.2 | K128: 0
A129: 10 | B129: Батон "умница" | C129: 20 | D129: 1.53 | E129: 0.6 | F129: 10.27 | G129: 52.4 | H129: 3.8 | I129: 2.6 | J129: 0.2 | K129: 0
A130: 349 | B130: Компот из сухофруктов | C130: 200 | D130: 0.66 | E130: 0.09 | F130: 32.01 | G130: 132.8 | H130: 32.48 | I130: 17.46 | J130: 0.7 | K130: 0.73
B131: Итого за обед | C131: 850 | D131: =SUM(D124:D130) -> 33.27 | E131: =SUM(E124:E130) -> 45.55 | F131: 126.34 | G131: 1056.98 | H131: 183.52 | I131: 97.76 | J131: 60.58 | K131: 27.44
B132: Итого за день | D132: =D122+D131 -> 45.94 | E132: 68.14 | F132: 187.07 | G132: 1554.34 | H132: 490.53 | I132: 125.84 | J132: 62.86 | K132: 31.73
A135: Номер тех.карты | B135: Наименование блюда | C135: Расход продуктов на 1 порцию (нетто) | D135: Пищевая ценность, г | G135: Энергетическая ценность (ккал) | H135: Минеральные вещества, мг
D136: Белки | E136: Жиры | F136: Углево-ды | H136: Ca | I136: Mg | J136: Fe | K136: C
B137: День 7
B138: ЗАВТРАК
A139: 202 | B139: Макароны отварные | C139: 180 | D139: 6.55 | E139: 6.95 | F139: 36.34 | G139: 234.84 | H139: 14.57 | I139: 9.77 | J139: 0.97 | K139: 0
A140: 268 | B140: Биточек мясной | C140: 100 | D140: 16.5 | E140: 24.2 | F140: 14.32 | G140: 344 | H140: 43.04 | I140: 55.78 | J140: 2.8 | K140: 0.34
A141: 6 | B141: Масло сливочное | C141: 10 | D141: 0.08 | E141: 8.24 | F141: 0.08 | G141: 74.8 | H141: 1.2 | I141: 0 | J141: 0.02 | K141: 0
A142: 11 | B142: Хлеб "богатырь" | C142: 30 | D142: 1.97 | E142: 0.26 | F142: 12.69 | G142: 61.2 | H142: 5.4 | I142: 5.74 | J142: 1.2 | K142: 0
A143: 433 | B143: Какао с молоком | C143: 200 | D143: 2.9 | E143: 2.5 | F143: 24.8 | G143: 134 | H143: 121 | I143: 14 | J143: 1 | K143: 1
B144: Итого за завтрак | C144: =SUM(C139:C143) -> 520 | D144: =SUM(D139:D143) -> 28 | E144: 42.15 | F144: 88.23 | G144: 848.84 | H144: 185.21 | I144: 85.29 | J144: 5.99 | K144: 1.34
B145: ОБЕД
A146: 13 | B146: Салат из свеклы с р/м | C146: 60 | D146: 1 | E146: 3 | F146: 5.8 | G146: 53.9 | H146: 22.7 | I146: 13.5 | J146: 0.9 | K146: 2.7
A147: 84 | B147: Суп рыбный | C147: 250 | D147: 6.05 | E147: 3.55 | F147: 12.19 | G147: 119 | H147: 48.87 | I147: 0 | J147: 1.36 | K147: 11.2
A148: 304 | B148: Рис припущенный | C148: 180 | D148: 4.38 | E148: 6.45 | F148: 43.92 | G148: 251.64 | H148: 2.88 | I148: 22.8 | J148: 0.64 | K148: 0
A149: 213/2008 | B149: Куры тушеные | C149: 100 | D149: 15.7 | E149: 9.4 | F149: 3.3 | G149: 169
A150: 11 | B150: Хлеб "богатырь" | C150: 30 | D150: 1.97 | E150: 0.26 | F150: 12.69 | G150: 61.2 | H150: 5.4 | I150: 5.74 | J150: 1.2 | K150: 0
A151: 10 | B151: Батон "умница" | C151: 20 | D151: 1.53 | E151: 0.6 | F151: 10.27 | G151: 52.4 | H151: 3.8 | I151: 2.6 | J151: 0.2 | K151: 0
A152: 401 | B152: Компот из изюма | C152: 200 | D152: 0.3 | E152: 0 | F152: 32.8 | G152: 134 | H152: 17 | I152: 5 | J152: 1 | K152: 0
B153: Итого за обед | C153: =SUM(C146:C152) -> 840 | D153: =SUM(D146:D152) -> 30.93 | E153: =SUM(E146:E152) -> 23.26 | F153: 120.97 | G153: 841.14 | H153: 100.65 | I153: 49.64 | J153: 5.3 | K153: 13.9
B154: Итого за день | D154: =D144+D153 -> 58.93 | E154: =E144+E153 -> 65.41 | F154: 209.2 | G154: 1689.98 | H154: 285.86 | I154: 134.93 | J154: 11.29 | K154: 15.24
A157: Номер тех.карты | B157: Наименование блюда | C157: Расход продуктов на 1 порцию (нетто) | D157: Пищевая ценность, г | G157: Энергетическая ценность (ккал) | H157: Минеральные вещества, мг
D158: Белки | E158: Жиры | F158: Углево-ды | H158: Ca | I158: Mg | J158: Fe | K158: C
B159: День 8
B160: ЗАВТРАК
B161: Кукуруза отварная консервированная | C161: 30
A162: 210 | B162: Омлет натуральный | C162: 160 | D162: 16.48 | E162: 27.2 | F162: 2.56 | G162: 274.3 | H162: 101.94 | I162: 21.42 | J162: 2.97 | K162: 0.32
A163: 10 | B163: Батон "умница" | C163: 30 | D163: 2.3 | E163: 0.9 | F163: 15.4 | G163: 78.6 | H163: 5.7 | I163: 3.9 | J163: 0.3 | K163: 0
A164: 7 | B164: Сыр | C164: 15 | D164: 3.48 | E164: 4.43 | F164: 0 | G164: 54 | H164: 132 | I164: 0 | J164: 0.15 | K164: 0.01
A165: 379 | B165: Кофейный напиток | C165: 200 | D165: 3.17 | E165: 2.68 | F165: 15.9 | G165: 100.6 | H165: 125.78 | I165: 14 | J165: 0.13 | K165: 1.3
B166: Итого за завтрак | C166: =SUM(C161:C165) -> 435 | D166: =SUM(D161:D165) -> 25.43 | E166: 35.21 | F166: 33.86 | G166: 507.5 | H166: 365.42 | I166: 39.32 | J166: 3.55 | K166: 1.63
B167: ОБЕД
A168: 40 | B168: Салат картофельный с зеленым горошком | C168: 60 | D168: 1.64 | E168: 4.24 | F168: 5.73 | G168: 67.62 | H168: 11.73 | I168: 14.48 | J168: 0.54 | K168: 5.02
A169: 95 | B169: Суп овщной | C169: 250 | D169: 3.06 | E169: 4.28 | F169: 10.4 | G169: 92.82 | H169: 30.6 | I169: 22.44 | J169: 0.82 | K169: 11.22
A170: 259 | B170: Жаркое по-домашнему | C170: 250 | D170: 23.14 | E170: 25.84 | F170: 23.67 | G170: 421.43 | H170: 43.57 | I170: 60.69 | J170: 5.51 | K170: 9.66
A171: 11 | B171: Хлеб "богатырь" | C171: 30 | D171: 1.97 | E171: 0.26 | F171: 12.69 | G171: 61.2 | H171: 5.4 | I171: 5.74 | J171: 1.2 | K171: 0
A172: 10 | B172: Батон "умница" | C172: 20 | D172: 1.53 | E172: 0.6 | F172: 10.27 | G172: 52.4 | H172: 3.8 | I172: 2.6 | J172: 0.2 | K172: 0
A173: 349 | B173: Компот из сухофруктов | C173: 200 | D173: 0.66 | E173: 0.09 | F173: 32.01 | G173: 132.8 | H173: 32.48 | I173: 17.46 | J173: 0.7 | K173: 0.73
B174: Итого за обед | C174: =SUM(C168:C173) -> 810 | D174: =SUM(D168:D173) -> 32 | E174: =SUM(E168:E173) -> 35.31 | F174: 94.77 | G174: 828.27 | H174: 127.58 | I174: 123.41 | J174: 8.97 | K174: 26.63
B175: Итого за день | D175: =D166+D174 -> 57.43 | E175: 70.52 | F175: 128.63 | G175: 1335.77 | H175: 493 | I175: 162.73 | J175: 12.52 | K175: 28.26
A178: Номер тех.карты | B178: Наименование блюда | C178: Расход продуктов на 1 порцию (нетто) | D178: Пищевая ценность, г | G178: Энергетическая ценность (ккал) | H178: Минеральные вещества, мг
D179: Белки | E179: Жиры | F179: Углево-ды | H179: Ca | I179: Mg | J179: Fe | K179: C
B180: День 9
B181: ЗАВТРАК
A182: 182 | B182: Каша молочная пшенная | C182: 220 | D182: 7.87 | E182: 12.28 | F182: 38.81 | G182: 298.56 | H182: 144.68 | I182: 49.87 | J182: 1.29 | K182: 1.23
A183: 10 | B183: Батон "умница" | C183: 30 | D183: 2.3 | E183: 0.9 | F183: 15.4 | G183: 78.6 | H183: 5.7 | I183: 3.9 | J183: 0.3 | K183: 0
A184: 6 | B184: Масло сливочное | C184: 10 | D184: 0.08 | E184: 8.24 | F184: 0.08 | G184: 74.8 | H184: 1.2 | I184: 0 | J184: 0.02 | K184: 0
A185: 7 | B185: Сыр | C185: 15 | D185: 3.48 | E185: 4.43 | F185: 0 | G185: 54 | H185: 132 | I185: 0 | J185: 0.15 | K185: 0.01
A186: 20 | B186: Чай сладкий | C186: 200 | D186: 0 | E186: 0 | F186: 14.9 | G186: 60 | H186: 5 | I186: 4 | J186: 0.75 | K186: 0
B187: Итого за завтрак | C187: =SUM(C182:C186) -> 475 | D187: =SUM(D182:D186) -> 13.73 | E187: 25.85 | F187: 69.19 | G187: 565.96 | H187: 288.58 | I187: 57.77 | J187: 2.51 | K187: 1.24
B188: ОБЕД
A189: 67 | B189: Винегрет с р/м | C189: 60 | D189: 0.84 | E189: 6.02 | F189: 4.37 | G189: 75.06 | H189: 18.72 | I189: 11.7 | J189: 0.5 | K189: 5.76
A190: 96 | B190: Рассольник по-ленинград. | C190: 250 | D190: 6.36 | E190: 8.9 | F190: 11.81 | G190: 158.34 | H190: 32.29 | I190: 24.08 | J190: 1.38 | K190: 13.72
A191: 229 | B191: Рыба тушеная в томате с овощами | C191: 250 | D191: 24.38 | E191: 12.38 | F191: 9.5 | G191: 262.5 | H191: 97.68 | I191: 121.33 | J191: 2.13 | K191: 9.33
A192: 11 | B192: Хлеб "богатырь" | C192: 30 | D192: 1.97 | E192: 0.26 | F192: 12.69 | G192: 61.2 | H192: 5.4 | I192: 5.74 | J192: 1.2 | K192: 0
A193: 10 | B193: Батон "умница" | C193: 20 | D193: 1.53 | E193: 0.6 | F193: 10.27 | G193: 52.4 | H193: 3.8 | I193: 2.6 | J193: 0.2 | K193: 0
A194: 411 | B194: Кисель | C194: 200 | D194: 0.1 | E194: 0.1 | F194: 27.9 | G194: 113 | H194: 5 | I194: 2 | J194: 0.4 | K194: 2
B195: Итого за обед | C195: =SUM(C189:C194) -> 810 | D195: =SUM(D189:D194) -> 35.18 | E195: 28.26 | F195: 76.54 | G195: 722.5 | H195: 162.89 | I195: 167.45 | J195: 5.81 | K195: 30.81
B196: Итого за день | D196: =D187+D195 -> 48.91 | E196: 54.11 | F196: 145.73 | G196: 1288.46 | H196: 451.47 | I196: 225.22 | J196: 8.32 | K196: 32.05
A199: Номер тех.карты | B199: Наименование блюда | C199: Расход продуктов на 1 порцию (нетто) | D199: Пищевая ценность, г | G199: Энергетическая ценность (ккал) | H199: Минеральные вещества, мг
D200: Белки | E200: Жиры | F200: Углево-ды | H200: Ca | I200: Mg | J200: Fe | K200: C
B201: День 10
B202: ЗАВТРАК
A203: 679 | B203: Греча рассыпчатая | C203: 180 | D203: 8.95 | E203: 6.73 | F203: 43 | G203: 276.53 | H203: 15.57 | I203: 81 | J203: 4.73 | K203: 0
A204: 283 | B204: Тефтели мясные | C204: 100 | D204: 15.5 | E204: 27.5 | F204: 21 | G204: 391.5 | H204: 57.5 | I204: 23.16 | J204: 1.83 | K204: 0.15
A205: 71 | B205: Овощи в нарезке | C205: 80 | D205: 0.88 | E205: 0.16 | F205: 3.04 | G205: 17.6 | H205: 11.2 | I205: 16 | J205: 72 | K205: 14
A206: 11 | B206: Хлеб "богатырь" | C206: 30 | D206: 1.97 | E206: 0.26 | F206: 12.69 | G206: 61.2 | H206: 5.4 | I206: 5.74 | J206: 1.2 | K206: 0
A207: 389 | B207: Сок фруктовый | C207: 200 | D207: 1 | E207: 0 | F207: 20.2 | G207: 84.8 | H207: 14 | I207: 10 | J207: 2.8 | K207: 4
B208: Итого за завтрак | C208: =SUM(C203:C207) -> 590 | D208: =SUM(D203:D207) -> 28.3 | E208: 34.65 | F208: 99.93 | G208: 831.63 | H208: 103.67 | I208: 135.9 | J208: 82.56 | K208: 18.15
B209: ОБЕД
A210: 70 | B210: Огурец соленый | C210: 60 | D210: 0.66 | E210: 0.12 | F210: 2.28 | G210: 13.2 | H210: 8.4 | I210: 12 | J210: 0.54 | K210: 10.5
A211: 104 | B211: Суп овощной с мясными фрикадельками | C211: 250/20 | D211: 8.89 | E211: 6.59 | F211: 13.5 | G211: 159.8 | H211: 33.37 | I211: 36.69 | J211: 1.61 | K211: 9.7
A212: 318 | B212: Картофель отварной | C212: 180 | D212: 3.48 | E212: 5.28 | F212: 2.47 | G212: 175.2 | H212: 18.01 | I212: 0 | J212: 1.42 | K212: 25.8
A213: 234 | B213: Котлета рыбная | C213: 100 | D213: 12.24 | E213: 12.11 | F213: 14.95 | G213: 217.48 | H213: 60.15 | I213: 24.36 | J213: 1.24 | K213: 0.94
A214: 11 | B214: Хлеб "богатырь" | C214: 30 | D214: 1.97 | E214: 0.26 | F214: 12.69 | G214: 61.2 | H214: 5.4 | I214: 5.74 | J214: 1.2 | K214: 0
A215: 10 | B215: Батон "умница" | C215: 20 | D215: 1.53 | E215: 0.6 | F215: 10.27 | G215: 52.4 | H215: 3.8 | I215: 2.6 | J215: 0.2 | K215: 0
A216: 411 | B216: Кисель | C216: 200 | D216: 0.1 | E216: 0.1 | F216: 27.9 | G216: 113 | H216: 5 | I216: 2 | J216: 0.4 | K216: 2
B217: Итого за обед | C217: 850 | D217: =SUM(D210:D216) -> 28.87 | E217: 25.06 | F217: 84.06 | G217: 792.28 | H217: 134.13 | I217: 83.39 | J217: 6.61 | K217: 48.94
B218: Итого за день | D218: =D208+D217 -> 57.17 | E218: 59.71 | F218: 183.99 | G218: 1623.91 | H218: 237.8 | I218: 219.29 | J218: 89.17 | K218: 67.09
B220: ИТОГО ЗА 10 ДНЕЙ | D220: =D23+D46+D67+D89+D110+D132+D154+D175+D196+D218 -> 527.98 | E220: 649.82 | F220: 1715.35 | G220: 14974.81 | H220: 3848.1 | I220: 1540.85 | J220: 296.36 | K220: 355.02
B222: Средний показатель | D222: =D220/10 -> 52.80 | E222: =E220/10 -> 64.98 | F222: 171.54 | G222: 1497.48 | H222: 384.81 | I222: 154.09 | J222: 29.64 | K222: 35.50

Sheet Тит.лист
C5: Муницыпальное общеобразовательное учреждение
C6: "Лахколампинская средняя общеобразовательная школа"
B7: Республика Карелия, Суоярвский район, п.Лахколапи, ул.Школьная, д.
J11: Утверждаю:
J13: Директор школы: ________________ /Сендо О.В./
B17: Примерное меню на 10 дней для учащихся
B19: МОУ "Лахколампинская СОШ"
C21: Возрастная категория 7-11 лет
D23: 2022-2023 учебный год

Sheet 7-11
B2: Примерное меню учащихся МОУ "Лахколампинская СОШ" на 2022-2023 гг
A4: Номер тех.карты | B4: Наименование блюда | C4: Масса порции, г | D4: Пищевая ценность, г | G4: Энергетическая ценность (ккал) | H4: Минеральные вещества, мг
D5: Белки | E5: Жиры | F5: Углево-ды | H5: Ca | I5: Mg | J5: Fe | K5: C
B6: День 1
B7: ЗАВТРАК
A8: 304 | B8: Рис с маслом | C8: 150/6 | D8: 3.65 | E8: 5.37 | F8: 36.68 | G8: 209.7 | H8: 2.4 | I8: 19 | J8: 0.53 | K8: 0
A9: 268 | B9: Котлета мясная | C9: 90 | D9: 14.81 | E9: 17.66 | F9: 12.85 | G9: 272.2 | H9: 38.14 | I9: 50.2 | J9: 2.51 | K9: 0.31
A10: 347 | B10: Соус белый | C10: 50 | D10: 0.3 | E10: 1.76 | F10: 1.83 | G10: 24.35 | H10: 5.87 | J10: 0.08 | K10: 0.14
A11: 11 | B11: Хлеб "Богатырь" | C11: 30 | D11: 1.97 | E11: 0.26 | F11: 12.69 | G11: 61.2 | H11: 5.4 | I11: 5.74 | J11: 1.2 | K11: 0
A12: 20 | B12: Чай сладкий | C12: 200 | D12: 0.2 | E12: 0.11 | F12: 15 | G12: 60 | H12: 5 | I12: 4 | J12: 1 | K12: 0
B13: Итого за завтрак | D13: =SUM(D8:D12) -> 20.93 | E13: 25.16 | F13: 79.05 | G13: 627.45 | H13: 56.81 | I13: 78.94 | J13: 5.32 | K13: 0.45
B14: ОБЕД
A15: 77 | B15: Суп картофельный | C15: 250 | D15: 2.34 | E15: 2.83 | F15: 16.66 | G15: 101.25 | H15: 25.85 | J15: 1.17 | K15: 12
A16: 202 | B16: Макароны с маслом | C16: 150 | D16: 5.46 | E16: 5.79 | F16: 30.45 | G16: 195.7 | H16: 12.14 | I16: 8.14 | J16: 0.81 | K16: 0
A17: 192/2008 | B17: Печень по-строгановски | C17: 100 | D17: 23.32 | E17: 28.95 | F17: 4.7 | G17: 370.15 | H17: 51.34 | I17: 21.36 | J17: 6.6 | K17: 9.09
A18: 11 | B18: Хлеб "Богатырь" | C18: 30 | D18: 1.97 | E18: 0.26 | F18: 12.69 | G18: 61.2 | H18: 5.4 | I18: 5.74 | J18: 1.2 | K18: 0
A19: 349 | B19: Компот из сухофруктов | C19: 200 | D19: 0.66 | E19: 0.09 | F19: 32.01 | G19: 132.8 | H19: 32.48 | I19: 17.46 | J19: 0.7 | K19: 0.73
B20: Итого за обед | D20: =SUM(D16:D19) -> 31.41 | E20: 35.09 | F20: 79.85 | G20: 759.85 | H20: 101.36 | I20: 52.7 | J20: 9.31 | K20: 9.82
B21: Итого за день | D21: =D13+D20 -> 52.34 | E21: 60.25 | F21: 158.9 | G21: 1387.3 | H21: 158.17 | I21: 131.64 | J21: 14.63 | K21: 10.27
A24: Номер тех.карты | B24: Наименование блюда | C24: Расход продуктов на 1 порцию (нетто) | D24: Пищевая ценность, г | G24: Энергетическая ценность (ккал) | H24: Минеральные вещества, мг
D25: Белки | E25: Жиры | F25: Углево-ды | H25: Ca | I25: Mg | J25: Fe | K25: C
B26: День 2
B27: ЗАВТРАК
A28: 469 | B28: Запеканка творожная | C28: 180/20 | D28: 33.41 | E28: 21.6 | F28: 38.88 | G28: 335.52 | H28: 271.68 | I28: 58.7 | J28: 1.01 | K28: 0.89
A29: 20 | B29: Чай сладкий | C29: 200 | D29: 0.2 | E29: 0.11 | F29: 15 | G29: 60 | H29: 5 | I29: 4 | J29: 1 | K29: 0
A30: 5 | B30: Мандарин | C30: 100 | D30: 0.86 | E30: 0.14 | F30: 7.57 | G30: 38 | H30: 35 | I30: 11 | J30: 0.14 | K30: 38
B31: Итого за завтрак | D31: =SUM(D28:D30) -> 34.47 | E31: 21.85 | F31: 61.45 | G31: 433.52 | H31: 311.68 | I31: 73.7 | J31: 2.15 | K31: 38.89
B32: ОБЕД
A33: 80 | B33: Суп картофельный с рисом | C33: 250 | D33: 2.18 | E33: 2.84 | F33: 14.29 | G33: 91.5 | H33: 24 | J33: 0.96 | K33: 8.25
A34: 239/2008 | B34: Картофель отварной | C34: 150 | D34: 3.14 | E34: 7.04 | F34: 27.21 | G34: 182.46 | H34: 12 | I34: 29.7 | J34: 0.45 | K34: 6.24
A35: 234 | B35: Биточек рыбный | C35: 80 | D35: 9.79 | E35: 9.69 | F35: 11.96 | G35: 173.98 | H35: 48.12 | I35: 19.49 | J35: 0.99 | K35: 0.75
B36: Огурец св. порционный | C36: 50 | D36: 0.4 | E36: 0.05 | F36: 1.25 | G36: 7 | H36: 1.15 | I36: 0 | J36: 0.03 | K36: 0.5
A37: 11 | B37: Хлеб "Богатырь" | C37: 30 | D37: 1.97 | E37: 0.26 | F37: 12.69 | G37: 61.2 | H37: 5.4 | I37: 5.74 | J37: 1.2 | K37: 0
A38: 20 | B38: Чай сладкий | C38: 200 | D38: 0.02 | E38: 0.11 | F38: 15 | G38: 60 | H38: 5 | I38: 4 | J38: 1 | K38: 0
B39: Итого за обед | D39: =SUM(D33:D38) -> 17.5 | E39: 19.99 | F39: 82.4 | G39: 576.14 | H39: 95.67 | I39: 58.93 | J39: 4.63 | K39: 15.74
B40: Итого за день | D40: =D31+D39 -> 51.97 | E40: 41.84 | F40: 143.85 | G40: 1009.66 | H40: 407.35 | I40: 132.63 | J40: 6.78 | K40: 54.63
A43: Номер тех.карты | B43: Наименование блюда | C43: Расход продуктов на 1 порцию (нетто) | D43: Пищевая ценность, г | G43: Энергетическая ценность (ккал) | H43: Минеральные вещества, мг
D44: Белки | E44: Жиры | F44: Углево-ды | H44: Ca | I44: Mg | J44: Fe | K44: C
B45: День 3
B46: ЗАВТРАК
A47: 259 | B47: Жаркое по-домашнему | C47: 220 | D47: 20.37 | E47: 22.74 | F47: 20.83 | G47: 370.84 | H47: 38.36 | I47: 53.4 | J47: 4.85 | K47: 8.49
A48: 47 | B48: Салат из квашеной капусты | C48: 60 | D48: 1.02 | E48: 3 | F48: 5.07 | G48: 51.42 | H48: 31.35 | I48: 9.61 | J48: 0.4 | K48: 11.89
A49: 11 | B49: Хлеб "Богатырь" | C49: 30 | D49: 1.97 | E49: 0.26 | F49: 12.69 | G49: 61.2 | H49: 5.4 | I49: 5.74 | J49: 1.2 | K49: 0
A50: 20 | B50: Чай сладкий | C50: 200 | D50: 0.2 | E50: 0.11 | F50: 15 | G50: 60 | H50: 5 | I50: 4 | J50: 1 | K50: 0
B51: Кондитерское изделие
B52: Итого за завтрак | D52: =SUM(D47:D51) -> 23.56 | E52: 26.11 | F52: 53.59 | G52: 543.46 | H52: 80.11 | I52: 72.75 | J52: 7.45 | K52: 20.38
B53: ОБЕД
A54: 82 | B54: Борщ со сметаной | C54: 250/10 | D54: 6.4 | E54: 10.03 | F54: 11.55 | G54: 171.04 | H54: 61.37 | I54: 27.03 | J54: 1.68 | K54: 16.06
A55: 304 | B55: Рис с маслом | C55: 150 | D55: 3.65 | E55: 5.37 | F55: 36.68 | G55: 209.7 | H55: 2.4 | I55: 19 | J55: 0.53 | K55: 0
A56: 315 | B56: Биточки из грудки в соусе | C56: 100 | D56: 24.8 | E56: 29 | F56: 10.2 | G56: 401 | H56: 28.8 | I56: 25.8 | J56: 2 | K56: 1.2
A57: 11 | B57: Хлеб "Богатырь" | C57: 30 | D57: 1.97 | E57: 0.26 | F57: 12.69 | G57: 61.2 | H57: 5.4 | I57: 5.74 | J57: 1.2 | K57: 0
A58: 20 | B58: Чай сладкий | C58: 200 | D58: 0.02 | E58: 0.11 | F58: 15 | G58: 60 | H58: 5 | I58: 4 | J58: 1 | K58: 0
B59: Итого за обед | D59: =SUM(D54:D58) -> 36.84 | E59: =SUM(E54:E58) -> 44.77 | F59: 86.12 | G59: 902.94 | H59: 102.97 | I59: 81.57 | J59: 6.41 | K59: 17.26
B60: Итого за день | D60: =D52+D59 -> 60.4 | E60: 70.88 | F60: 139.71 | G60: 1446.4 | H60: 183.08 | I60: 154.32 | J60: 13.86 | K60: 37.64
A63: Номер тех.карты | B63: Наименование блюда | C63: Расход продуктов на 1 порцию (нетто) | D63: Пищевая ценность, г | G63: Энергетическая ценность (ккал) | H63: Минеральные вещества, мг
D64: Белки | E64: Жиры | F64: Углево-ды | H64: Ca | I64: Mg | J64: Fe | K64: C
B65: День 4
B66: ЗАВТРАК
A67: 202 | B67: Макароны с маслом | C67: 180 | D67: 6.55 | E67: 6.94 | F67: 36.55 | G67: 234.86 | H67: 14.57 | I67: 9.77 | J67: 0.98 | K67: 0
A68: 205/2008 | B68: Сосиска в соусе | C68: 130 | D68: 7.17 | E68: 17.37 | F68: 1.7 | G68: 194.69 | H68: 15 | I68: 9.94 | J68: 1.05 | K68: 0
A69: 11 | B69: Хлеб "Богатырь" | C69: 30 | D69: 1.97 | E69: 0.26 | F69: 12.69 | G69: 61.2 | H69: 5.4 | I69: 5.74 | J69: 1.2 | K69: 0
A70: 377 | B70: Чай сладкий с лимоном | C70: 200 | D70: 0.13 | E70: 0.02 | F70: 15.2 | G70: 62 | H70: 14.2 | I70: 2.4 | J70: 0.36 | K70: 2.83
A71: 1 | B71: Яблоко порционное | C71: 100 | D71: 0.35 | E71: 0.35 | F71: 9.76 | G71: 47.01 | H71: 16 | I71: 8 | J71: 2.24 | K71: 10
B72: Итого за завтрак | D72: =SUM(D67:D71) -> 16.17 | E72: 24.94 | F72: 75.9 | G72: 599.76 | H72: 65.17 | I72: 35.85 | J72: 5.83 | K72: 12.83
B73: ОБЕД
A74: 96 | B74: Рассольник со сметаной | C74: 250/10 | D74: 6.36 | E74: 8.9 | F74: 11.81 | G74: 158.34 | H74: 32.29 | I74: 24.08 | J74: 1.38 | K74: 13.72
A75: 679 | B75: Греча с маслом | C75: 150 | D75: 7.46 | E75: 5.61 | F75: 35.84 | G75: 230.45 | H75: 12.98 | I75: 67.5 | J75: 3.95 | K75: 0
A76: 283 | B76: Тефтели мясные в соусе | C76: 60/40 | D76: 9.3 | E76: 16.5 | F76: 12.6 | G76: 234.9 | H76: 34.5 | I76: 13.9 | J76: 1.1 | K76: 0.9
A77: 11 | B77: Хлеб "Богатырь" | C77: 30 | D77: 1.97 | E77: 0.26 | F77: 12.69 | G77: 61.2 | H77: 5.4 | I77: 5.74 | J77: 1.2 | K77: 0
A78: 20 | B78: Чай сладкий | C78: 200 | D78: 0.2 | E78: 0.11 | F78: 15 | G78: 60 | H78: 5 | I78: 4 | J78: 1 | K78: 0
B79: Итого за обед | D79: =SUM(D74:D78) -> 25.29 | E79: =SUM(E74:E78) -> 31.38 | F79: 87.94 | G79: 744.89 | H79: 90.17 | I79: 115.22 | J79: 8.63 | K79: 14.62
B80: Итого за день | D80: =D72+D79 -> 41.46 | E80: 56.32 | F80: 163.84 | G80: 1344.65 | H80: 155.34 | I80: 151.07 | J80: 14.46 | K80: 27.45
A83: Номер тех.карты | B83: Наименование блюда | C83: Расход продуктов на 1 порцию (нетто) | D83: Пищевая ценность, г | G83: Энергетическая ценность (ккал) | H83: Минеральные вещества, мг
D84: Белки | E84: Жиры | F84: Углево-ды | H84: Ca | I84: Mg | J84: Fe | K84: C
B85: День 5
B86: ЗАВТРАК
A87: 189 | B87: Каша молочная геркулесовая | C87: 250 | D87: 8.41 | E87: 12.38 | F87: 31.19 | G87: 268.95 | H87: 193.05 | I87: 67.65 | J87: 3.3 | K87: 1.65
A88: 3 | B88: Батон с маслом и сыром | C88: 60 | D88: 6.98 | E88: 10.92 | F88: 15.44 | G88: 188 | H88: 182.3 | I88: 3.9 | J88: 0.51 | K88: 0.14
A89: 379 | B89: Кофейный напиток с молоком | C89: 200 | D89: 3.17 | E89: 2.68 | F89: 15.9 | G89: 100.6 | H89: 125.78 | I89: 14 | J89: 0.13 | K89: 1.3
A90: 5 | B90: Мандарин | C90: 100 | D90: 0.86 | E90: 0.14 | F90: 7.57 | G90: 38 | H90: 35 | I90: 11 | J90: 0.14 | K90: 38
B91: Итого за завтрак | D91: =SUM(D87:D90) -> 19.42 | E91: =SUM(E87:E90) -> 26.12 | F91: 70.1 | G91: 595.55 | H91: 536.13 | I91: 96.55 | J91: 4.08 | K91: 41.09
B92: ОБЕД
A93: 102 | B93: Суп картофельный с горохом | C93: 250 | D93: 9.83 | E93: 8.88 | F93: 16.8 | G93: 169.34 | H93: 45.82 | I93: 35.48 | J93: 4.55 | K93: 11.17
A94: 259 | B94: Жаркое по-домашнему с мясом | C94: 220 | D94: 20.37 | E94: 22.74 | F94: 20.85 | G94: 386 | H94: 37.86 | I94: 53.41 | J94: 4.85 | K94: 8.5
A95: 11 | B95: Хлеб "Богатырь" | C95: 30 | D95: 1.97 | E95: 0.26 | F95: 12.69 | G95: 61.2 | H95: 5.4 | I95: 5.74 | J95: 1.2 | K95: 0
A96: 20 | B96: Чай сладкий | C96: 200 | D96: 0.2 | E96: 0.11 | F96: 15 | G96: 60 | H96: 5 | I96: 4 | J96: 1 | K96: 0
B97: Итого за обед | D97: =SUM(D93:D96) -> 32.37 | E97: 31.99 | F97: 65.34 | G97: 676.54 | H97: 94.08 | I97: 98.63 | J97: 11.6 | K97: 19.67
B98: Итого за день | D98: =D91+D97 -> 51.79 | E98: 58.11 | F98: 135.44 | G98: 1272.09 | H98: 630.21 | I98: 195.18 | J98: 15.68 | K98: 60.76
A101: Номер тех.карты | B101: Наименование блюда | C101: Расход продуктов на 1 порцию (нетто) | D101: Пищевая ценность, г | G101: Энергетическая ценность (ккал) | H101: Минеральные вещества, мг
D102: Белки | E102: Жиры | F102: Углево-ды | H102: Ca | I102: Mg | J102: Fe | K102: C
B103: День 6
B104: ЗАВТРАК
A105: 679 | B105: Греча с маслом | C105: 150 | D105: 7.46 | E105: 5.61 | F105: 35.84 | G105: 230.45 | H105: 12.98 | I105: 67.5 | J105: 3.95 | K105: 0
A106: 268 | B106: Котлета мясная | C106: 90 | D106: 14.81 | E106: 17.66 | F106: 12.85 | G106: 272.2 | H106: 38.14 | I106: 50.2 | J106: 2.51 | K106: 0.31
A107: 347 | B107: Соус белый | C107: 50 | D107: 0.3 | E107: 1.76 | F107: 1.83 | G107: 24.35 | H107: 5.87 | J107: 0.08 | K107: 0.14
A108: 11 | B108: Хлеб "Богатырь" | C108: 30 | D108: 1.97 | E108: 0.26 | F108: 12.69 | G108: 61.2 | H108: 5.4 | I108: 5.74 | J108: 1.2 | K108: 0
A109: 349 | B109: Компот из сухофруктов | C109: 200 | D109: 0.66 | E109: 0.09 | F109: 32.01 | G109: 132.8 | H109: 32.48 | I109: 17.46 | J109: 0.7 | K109: 0.73
B110: Итого за завтрак | D110: =SUM(D105:D109) -> 25.2 | E110: =SUM(E105:E109) -> 25.38 | F110: 95.22 | G110: 721 | H110: 94.87 | I110: 140.9 | J110: 8.44 | K110: 1.18
B111: ОБЕД
A112: 88 | B112: Щи со сметаной | C112: 250/10 | D112: 6.37 | E112: 10.06 | F112: 8.26 | G112: 157.04 | H112: 60.89 | I112: 23 | J112: 1.28 | K112: 21.16
A113: 193/2008 | B113: Плов рисовый с мясом | C113: 200 | D113: 16.33 | E113: 20.69 | F113: 48.1 | G113: 418.37 | H113: 21.4 | I113: 47.47 | J113: 3.1 | K113: 2.1
A114: 11 | B114: Хлеб "Богатырь" | C114: 30 | D114: 1.97 | E114: 0.26 | F114: 12.69 | G114: 61.2 | H114: 5.4 | I114: 5.74 | J114: 1.2 | K114: 0
A115: 20 | B115: Чай сладкий | C115: 200 | D115: 0.2 | E115: 0.11 | F115: 15 | G115: 60 | H115: 5 | I115: 4 | J115: 1 | K115: 0
B116: Итого за обед | D116: =SUM(D112:D115) -> 24.87 | E116: =SUM(E112:E115) -> 31.12 | F116: 84.05 | G116: 696.61 | H116: 92.69 | I116: 80.21 | J116: 6.58 | K116: 23.26
B117: Итого за день | D117: =D110+D116 -> 50.07 | E117: =E110+E116 -> 56.5 | F117: 179.27 | G117: 1417.61 | H117: 187.56 | I117: 221.11 | J117: 15.02 | K117: 24.44
A120: Номер тех.карты | B120: Наименование блюда | C120: Расход продуктов на 1 порцию (нетто) | D120: Пищевая ценность, г | G120: Энергетическая ценность (ккал) | H120: Минеральные вещества, мг
D121: Белки | E121: Жиры | F121: Углево-ды | H121: Ca | I121: Mg | J121: Fe | K121: C
B122: День 7
B123: ЗАВТРАК
A124: 189 | B124: Каша молочная рисовая | C124: 250 | D124: 6.44 | E124: 10.4 | F124: 35.64 | G124: 262.35 | H124: 176.55 | I124: 37.95 | J124: 1.65 | K124: 1.65
A125: 3 | B125: Батон с маслом и сыром | C125: 60 | D125: 6.98 | E125: 10.92 | F125: 15.44 | G125: 188 | H125: 182.3 | I125: 3.9 | J125: 51 | K125: 0.14
A126: 379 | B126: Кофейный напиток с молоком | C126: 200 | D126: 3.17 | E126: 2.68 | F126: 15.9 | G126: 100.6 | H126: 125.78 | I126: 14 | J126: 0.13 | K126: 1.3
A127: 5 | B127: Мандарин | C127: 100 | D127: 0.86 | E127: 0.14 | F127: 7.57 | G127: 38 | H127: 35 | I127: 11 | J127: 0.14 | K127: 38
B128: Итого за завтрак | D128: =SUM(D124:D127) -> 17.45 | E128: 24.14 | F128: 74.55 | G128: 588.95 | H128: 519.63 | I128: 66.85 | J128: 52.92 | K128: 41.09
B129: ОБЕД
A130: 84 | B130: Суп рыбный с крупой | C130: 250 | D130: 6.05 | E130: 3.55 | F130: 12.19 | G130: 119 | H130: 48.87 | J130: 1.36 | K130: 11.2
A131: 45 | B131: Винегрет овощной | C131: 200 | D131: 2.73 | E131: 12.35 | F131: 16.88 | G131: 189.6 | H131: 46.4 | J131: 1.7 | K131: 20.5
A132: 11 | B132: Хлеб "Богатырь" | C132: 30 | D132: 1.97 | E132: 0.26 | F132: 12.69 | G132: 61.2 | H132: 5.4 | I132: 5.74 | J132: 1.2 | K132: 0
A133: 20 | B133: Чай сладкий | C133: 200 | D133: 0.2 | E133: 0.11 | F133: 15 | G133: 60 | H133: 5 | I133: 4 | J133: 1 | K133: 0
B134: Итого за обед | D134: =SUM(D130:D133) -> 10.95 | E134: =SUM(E130:E133) -> 16.27 | F134: 56.76 | G134: 429.8 | H134: 105.67 | I134: 9.74 | J134: 5.26 | K134: 31.7
B135: Итого за день | D135: =D128+D134 -> 28.4 | E135: =E128+E134 -> 40.41 | F135: 131.31 | G135: 1018.75 | H135: 625.3 | I135: 76.59 | J135: 58.18 | K135: 72.79
A138: Номер тех.карты | B138: Наименование блюда | C138: Расход продуктов на 1 порцию (нетто) | D138: Пищевая ценность, г | G138: Энергетическая ценность (ккал) | H138: Минеральные вещества, мг
D139: Белки | E139: Жиры | F139: Углево-ды | H139: Ca | I139: Mg | J139: Fe | K139: C
B140: День 8
B141: ЗАВТРАК
A142: 128 | B142: Пюре картофельное | C142: 200 | D142: 4.34 | E142: 12.82 | F142: 25.18 | G142: 241 | H142: 58.32 | I142: 38.36 | J142: 1.44 | K142: 24.92
A143: 315 | B143: Биточки из грудки | C143: 100 | D143: 24.8 | E143: 29 | F143: 10.2 | G143: 265.84 | H143: 48.8 | I143: 25.8 | J143: 2 | K143: 1.2
A144: 11 | B144: Хлеб "Богатырь" | C144: 30 | D144: 1.97 | E144: 0.26 | F144: 12.69 | G144: 61.2 | H144: 5.4 | I144: 5.74 | J144: 1.2 | K144: 0
A145: 20 | B145: Чай сладкий | C145: 200 | D145: 0.2 | E145: 0.11 | F145: 15 | G145: 60 | H145: 5 | I145: 4 | J145: 1 | K145: 0
B146: Итого за завтрак | D146: =SUM(D142:D145) -> 31.31 | E146: 42.19 | F146: 63.07 | G146: 628.04 | H146: 117.52 | I146: 73.9 | J146: 5.64 | K146: 26.12
B147: ОБЕД
A148: 82 | B148: Суп картофельный с макаронными изделиями | C148: 250 | D148: 7.66 | E148: 8.58 | F148: 17.14 | G148: 176.42 | H148: 25.04 | I148: 27.44 | J148: 1.1 | K148: 8.56
A149: 679 | B149: Греча с маслом | C149: 150 | D149: 7.46 | E149: 5.61 | F149: 35.84 | G149: 230.44 | H149: 12.98 | I149: 67.5 | J149: 3.95 | K149: 0
A150: 260 | B150: Гуляш мясной | C150: 100 | D150: 14.55 | E150: 16.79 | F150: 2.89 | G150: 221 | H150: 21.81 | I150: 22.03 | J150: 3.06 | K150: 0.92
A151: 11 | B151: Хлеб "Богатырь" | C151: 30 | D151: 1.97 | E151: 0.26 | F151: 12.69 | G151: 61.2 | H151: 5.4 | I151: 5.74 | J151: 1.2 | K151: 0
A152: 20 | B152: Чай сладкий | C152: 200 | D152: 0.2 | E152: 0.11 | F152: 15 | G152: 60 | H152: 5 | I152: 4 | J152: 1 | K152: 0
B153: Итого за обед | D153: =SUM(D148:D152) -> 31.84 | E153: =SUM(E148:E152) -> 31.35 | F153: 83.56 | G153: 749.06 | H153: 70.23 | I153: 126.71 | J153: 10.31 | K153: 9.48
B154: Итого за день | D154: =D146+D153 -> 63.15 | E154: =E146+E153 -> 73.54 | F154: 146.63 | G154: 1377.1 | H154: 187.75 | I154: 200.61 | J154: 15.95 | K154: 35.6
A157: Номер тех.карты | B157: Наименование блюда | C157: Расход продуктов на 1 порцию (нетто) | D157: Пищевая ценность, г | G157: Энергетическая ценность (ккал) | H157: Минеральные вещества, мг
D158: Белки | E158: Жиры | F158: Углево-ды | H158: Ca | I158: Mg | J158: Fe | K158: C
B159: День 9
B160: ЗАВТРАК
A161: 202 | B161: Макароны с маслом | C161: 180 | D161: 6.55 | E161: 6.94 | F161: 36.55 | G161: 234.86 | H161: 14.57 | I161: 9.77 | J161: 0.98 | K161: 0
A162: 268 | B162: Котлета мясная | C162: 90 | D162: 14.81 | E162: 17.66 | F162: 12.85 | G162: 272.2 | H162: 38.14 | I162: 50.2 | J162: 2.52 | K162: 0.31
A163: 347 | B163: Соус белый | C163: 50 | D163: 0.3 | E163: 1.76 | F163: 1.83 | G163: 24.35 | H163: 5.86 | J163: 0.08 | K163: 0.14
A164: 11 | B164: Хлеб "Богатырь" | C164: 30 | D164: 1.97 | E164: 0.26 | F164: 12.69 | G164: 61.2 | H164: 5.4 | I164: 5.74 | J164: 1.2 | K164: 0
A165: 377 | B165: Чай сладкий с лимоном | C165: 200 | D165: 0.13 | E165: 0.02 | F165: 15.2 | G165: 62 | H165: 14.2 | I165: 2.4 | J165: 0.36 | K165: 2.83
B166: Итого за завтрак | D166: =SUM(D161:D165) -> 23.76 | E166: 26.64 | F166: 79.12 | G166: 654.61 | H166: 78.17 | I166: 68.11 | J166: 5.14 | K166: 3.28
B167: ОБЕД
A168: 102 | B168: Суп картофельный с горохом | C168: 250 | D168: 9.83 | E168: 8.88 | F168: 16.8 | G168: 169.34 | H168: 45.82 | I168: 35.48 | J168: 4.55 | K168: 11.17
A169: 202/2008 | B169: Ежики мясные с рисом | C169: 200 | D169: 18.32 | E169: 27.06 | F169: 18.88 | G169: 392.28
A170: 11 | B170: Хлеб "Богатырь" | C170: 30 | D170: 1.97 | E170: 0.26 | F170: 12.69 | G170: 61.2 | H170: 5.4 | I170: 5.74 | J170: 1.2 | K170: 0
A171: 20 | B171: Чай сладкий | C171: 200 | D171: 0.2 | E171: 0.11 | F171: 15 | G171: 60 | H171: 5 | I171: 4 | J171: 1 | K171: 0
B172: Итого за обед | D172: =SUM(D168:D171) -> 30.32 | E172: =SUM(E168:E171) -> 36.31 | F172: 63.37 | G172: 682.82 | H172: 56.22 | I172: 45.22 | J172: 6.75 | K172: 11.17
B173: Итого за день | D173: =D166+D172 -> 54.08 | E173: =E166+E172 -> 62.95 | F173: 142.49 | G173: 1337.43 | H173: 134.39 | I173: 113.33 | J173: 11.89 | K173: 14.45
A176: Номер тех.карты | B176: Наименование блюда | C176: Расход продуктов на 1 порцию (нетто) | D176: Пищевая ценность, г | G176: Энергетическая ценность (ккал) | H176: Минеральные вещества, мг
D177: Белки | E177: Жиры | F177: Углево-ды | H177: Ca | I177: Mg | J177: Fe | K177: C
B178: День 10
B179: ЗАВТРАК
A180: 182 | B180: Каша молочная пшенная | C180: 250 | D180: 8.94 | E180: 13.95 | F180: 44.11 | G180: 339 | H180: 164.4 | I180: 56.7 | J180: 1.46 | K180: 1.39
A181: 3 | B181: Батон с маслом и сыром | C181: 60 | D181: 6.98 | E181: 10.92 | F181: 15.44 | G181: 188 | H181: 182.3 | I181: 3.9 | J181: 51 | K181: 0.14
A182: 379 | B182: Кофейный напиток с молоком | C182: 200 | D182: 3.17 | E182: 2.68 | F182: 15.9 | G182: 100.6 | H182: 125.78 | I182: 14 | J182: 0.13 | K182: 1.3
B183: Итого за завтрак | D183: =SUM(D180:D182) -> 19.09 | E183: 27.55 | F183: 75.45 | G183: 627.6 | H183: 472.48 | I183: 74.6 | J183: 52.59 | K183: 2.83
B184: ОБЕД
A185: 80 | B185: Суп картофельный с перловой крупой | C185: 250 | D185: 2.18 | E185: 2.84 | F185: 14.29 | G185: 91.5 | H185: 24 | J185: 0.96 | K185: 8.25
A186: 259 | B186: Жаркое по-домашнему с мясом | C186: 200 | D186: 18.51 | E186: 20.68 | F186: 18.95 | G186: 337.13 | H186: 34.87 | I186: 48.55 | J186: 4.41 | K186: 7.72
A187: 11 | B187: Хлеб "Богатырь" | C187: 30 | D187: 2 | E187: 0 | F187: 13 | G187: 56 | H187: 6.3 | I187: 6.7 | J187: 1.4 | K187: 0
A188: 20 | B188: Чай сладкий | C188: 200 | D188: 0.2 | E188: 0.11 | F188: 15 | G188: 60 | H188: 5 | I188: 4 | J188: 1 | K188: 0
B189: Итого за обед | D189: =SUM(D185:D188) -> 22.89 | E189: =SUM(E185:E188) -> 23.63 | F189: 61.24 | G189: 544.63 | H189: 70.17 | I189: 59.25 | J189: 7.77 | K189: 15.97
B190: Итого за день | D190: =D183+D189 -> 41.98 | E190: =E183+E189 -> 51.18 | F190: 136.69 | G190: 1172.23 | H190: 542.65 | I190: 133.85 | J190: 60.36 | K190: 18.8
B192: ИТОГО ЗА 10 ДНЕЙ | D192: =D21+D40+D60+D80+D98+D117+D135+D154+D173+D190 -> 495.64 | E192: 571.98 | F192: 1478.13 | G192: 12783.22 | H192: 3211.8 | I192: 1510.33 | J192: 226.81 | K192: 356.83
B194: Средний показатель | D194: =D192/10 -> 49.56 | E194: =E192/10 -> 57.20 | F194: 147.81 | G194: 1278.32 | H194: 321.18 | I194: 151.03 | J194: 22.68 | K194: 35.68

Sheet Лист3
